bitfinex/quotes_ETHUSD_20240817
["timestamp","ask_amount","ask_price","bid_price","bid_amount"]
[1723884204225,1.20959876,2604.8,2604.6,3.83934]
[1723884204403,1.2091417,2604.7,2604.6,3.83934]
[1723884205301,1.2091417,2604.8,2604.6,3.83934]
[1723884205515,1.2091417,2604.7,2604.6,3.83934]
[1723884205722,1.2091417,2604.8,2604.6,3.83934]
[1723884206135,1.2091417,2604.7,2604.5,6.2642]
[1723884206332,1.2091417,2604.6,2604.2,3.83983]
[1723884207217,3.6327417,2604.6,2604.2,3.83983]
[1723884207404,2.5411417,2604.5,2604.2,3.83983]
[1723884210404,1.332,2604.5,2604.2,7.67969]
[1723884210609,2.5411417,2604.5,2604.2,3.83983]
[1723884211033,2.5411417,2604.5,2604.2,7.6797]
[1723884211194,2.5411417,2604.5,2604.2,3.83983]
[1723884211399,2.5411417,2604.5,2604.2,7.6797]
[1723884211998,1.2091417,2604.5,2604.3,3.83977]
[1723884212198,1.2091417,2604.6,2604.3,3.83977]
[1723884212635,1.2091417,2604.6,2604.4,3.83964]
[1723884212835,1.2091417,2604.6,2604.4,3.83955]
[1723884213044,1.2091417,2604.6,2604.3,3.83977]
[1723884213242,1.2091417,2604.6,2604.4,3.83957]
[1723884217610,2.5411417,2604.7,2604.4,3.83957]
[1723884218011,1.2091417,2604.6,2604.4,3.83957]
[1723884218822,2.5411417,2604.7,2604.5,3.8395]
[1723884219543,1.2091417,2604.6,2604.5,3.8395]
[1723884219744,2.94339679,2604.7,2604.5,3.8395]
[1723884219745,2.5411417,2604.7,2604.5,3.8395]
[1723884220054,1.2091417,2604.6,2604.5,3.8395]
[1723884220758,2.5411417,2604.7,2604.5,3.8395]
[1723884221442,2.5411417,2604.7,2604.3,7.67941]
[1723884221443,1.61139679,2604.6,2604.3,7.67941]
[1723884221631,1.20957057,2604.5,2604.3,3.8397]
[1723884223417,5.43489679,2604.7,2604.3,3.8397]
[1723884223418,1.20957057,2604.6,2604.3,3.8397]
[1723884223854,1.20957057,2604.5,2604.3,3.8397]
[1723884226768,2.54157057,2604.5,2604.3,3.8397]
[1723884227534,1.20957057,2604.4,2604.3,3.8397]
[1723884229846,1.61139679,2604.4,2604.2,3.83994]
[1723884230045,1.20949352,2604.3,2604.2,3.83994]
[1723884230258,1.61139679,2604.4,2604.2,3.83994]
[1723884230773,1.61139679,2604.4,2604.0,9.94363]
[1723884231084,1.20920682,2604.2,2604.1,3.84004]
[1723884232188,1.20920682,2604.3,2604.1,3.84004]
[1723884233440,1.20920682,2604.4,2604.1,3.84004]
[1723884235143,1.20920682,2604.4,2604.0,6.1034]
[1723884235144,1.20920682,2604.4,2604.2,3.83993]
[1723884239956,2.54120682,2604.5,2604.2,3.83993]
[1723884240470,1.20920682,2604.6,2604.3,6.13715]
[1723884240805,1.20920682,2604.6,2604.4,3.83965]
[1723884241096,1.62446718,2604.6,2604.4,3.83965]
[1723884241304,1.20920682,2604.6,2604.4,3.83965]
[1723884243511,2.54120682,2604.7,2604.5,3.83946]
[1723884243673,1.20920682,2604.6,2604.5,3.83946]
[1723884246197,2.94339679,2604.7,2604.3,3.83965]
[1723884246398,1.20886792,2604.5,2604.4,3.83964]
[1723884246602,1.61139679,2604.6,2604.4,3.83964]
[1723884247095,1.2088854,2604.5,2604.4,3.83964]
[1723884247301,1.61139679,2604.6,2604.4,3.83964]
[1723884247498,1.20899932,2604.5,2604.4,3.83964]
[1723884252795,1.61139679,2604.5,2604.4,3.83964]
[1723884252978,1.20929292,2604.5,2604.4,3.83964]
[1723884256031,1.61139679,2604.6,2604.4,3.83964]
[1723884256371,1.20917952,2604.5,2604.4,3.83964]
[1723884269304,1.61139679,2604.6,2604.4,3.83964]
[1723884269532,1.20956013,2604.5,2604.4,3.83964]
[1723884269863,1.20959973,2604.5,2604.4,3.83964]
[1723884270922,1.61139679,2604.6,2604.4,3.83964]
[1723884271950,1.61139679,2604.5,2604.2,3.83985]
[1723884272156,1.20957152,2604.3,2604.2,3.83985]
[1723884272353,1.20957152,2604.4,2604.2,3.83985]
[1723884272571,1.20957152,2604.4,2604.0,7.6803]
[1723884272724,1.20957152,2604.3,2603.9,6.23886]
[1723884273155,1.20957152,2604.2,2603.9,6.23886]
[1723884273436,1.20957152,2604.3,2603.9,6.23886]
[1723884277327,1.20957152,2604.3,2604.0,3.8402]
[1723884280642,1.20957152,2604.3,2604.0,7.6804]
[1723884281163,1.20957152,2604.3,2604.0,3.8402]
[1723884281371,1.20957152,2604.3,2604.0,7.68036]
[1723884281942,1.20957152,2604.3,2604.0,3.84016]
[1723884282270,1.20957152,2604.3,2604.0,7.68031]
[1723884283275,1.20957152,2604.3,2604.0,3.84015]
[1723884283674,1.20957152,2604.3,2604.0,7.68031]
[1723884285256,1.20957152,2604.3,2604.1,3.84006]
[1723884289995,1.20957152,2604.2,2604.1,3.84006]
[1723884293490,1.61139679,2604.4,2604.0,3.84015]
[1723884293491,2.54157152,2604.3,2604.0,7.68032]
[1723884293675,2.54157152,2604.1,2603.8,3.84044]
[1723884293892,2.54189118,2603.9,2603.8,3.84044]
[1723884294064,1.332,2603.9,2603.6,7.68154]
[1723884294275,1.20977228,2603.8,2603.6,7.68154]
[1723884294492,2.54177228,2603.9,2603.6,7.68154]
[1723884294794,1.20977228,2603.8,2603.7,3.84068]
[1723884295159,3.27767615,2603.9,2603.7,3.84068]
[1723884295997,2.06790387,2603.9,2603.7,3.84068]
[1723884296173,1.332,2603.9,2603.7,3.84068]
[1723884298154,1.20977228,2603.8,2603.6,3.84074]
[1723884298357,1.332,2603.7,2603.6,3.84074]
[1723884301717,4.88947228,2603.7,2603.4,3.84101]
[1723884301858,3.93387723,2603.7,2603.4,3.84101]
[1723884302908,1.332,2603.5,2603.0,3.84163]
[1723884303078,1.332,2603.3,2603.0,3.84163]
[1723884303294,1.332,2603.1,2602.9,3.84184]
[1723884303502,3.6797,2603.1,2602.7,3.84215]
[1723884303718,1.332,2602.9,2602.6,3.8422]
[1723884304580,0.36797,2602.9,2602.4,7.68499]
[1723884304828,0.36797,2602.9,2602.4,3.84247]
[1723884305128,2.3477,2602.8,2602.4,7.68498]
[1723884305432,3.003439,2602.8,2602.5,3.84242]
[1723884305718,1.332,2602.7,2602.5,3.84242]
[1723884306402,1.332,2602.7,2602.6,3.84231]
[1723884306603,0.36797,2602.9,2602.6,3.84231]
[1723884306604,1.69997,2602.9,2602.6,3.84231]
[1723884306823,1.69997,2602.9,2602.6,7.68453]
[1723884306824,1.332,2602.9,2602.6,7.68453]
[1723884307180,1.332,2602.9,2602.6,7.68444]
[1723884307486,1.332,2602.9,2602.6,3.84222]
[1723884307714,1.332,2602.9,2602.7,3.84215]
[1723884307921,1.332,2602.9,2602.6,3.8422]
[1723884309211,1.69997,2602.9,2602.6,3.8422]
[1723884311187,1.332,2602.9,2602.6,3.8422]
[1723884311387,1.332,2602.9,2602.6,7.68442]
[1723884311587,1.332,2602.9,2602.6,3.8422]
[1723884322635,1.332,2602.9,2602.5,3.84245]
[1723884323398,2.08413,2602.9,2602.5,3.84245]
[1723884328544,1.332,2602.7,2602.5,3.84245]
[1723884329270,1.332,2602.7,2602.4,3.84252]
[1723884329542,3.7034,2602.7,2602.4,3.84252]
[1723884330952,3.7034,2602.7,2602.4,7.68505]
[1723884331102,3.7034,2602.7,2602.4,3.84252]
[1723884333113,4.533141,2602.7,2602.2,3.84276]
[1723884333474,4.533141,2602.7,2602.2,7.68555]
[1723884334113,4.533141,2602.7,2602.3,3.84274]
[1723884339059,0.8375231,2602.6,2602.3,3.84274]
[1723884340271,0.8375231,2602.6,2602.3,7.68548]
[1723884340468,1.332,2602.6,2602.3,7.68548]
[1723884340780,1.332,2602.6,2602.3,3.84274]
[1723884340938,1.332,2602.6,2602.3,7.6854]
[1723884341143,1.332,2602.6,2602.3,3.84266]
[1723884342023,3.7131,2602.6,2602.3,3.84266]
[1723884344369,4.67256533,2602.6,2602.3,3.84266]
[1723884345261,5.88233761,2602.6,2602.3,3.84266]
[1723884345462,4.55033761,2602.6,2602.1,7.68585]
[1723884345785,1.08337154,2602.5,2602.1,7.68585]
[1723884346329,1.08337154,2602.5,2602.2,3.84288]
[1723884346531,1.332,2602.4,2602.2,3.84288]
[1723884350302,2.54177228,2602.4,2602.2,3.84288]
[1723884351502,1.61139679,2602.5,2602.2,2.4963]
[1723884351503,1.20977228,2602.5,2602.2,2.4963]
[1723884351676,1.20977228,2602.6,2602.5,3.84245]
[1723884351875,1.20977228,2602.6,2602.4,3.8426]
[1723884351876,2.54177228,2602.7,2602.6,3.84231]
[1723884352070,1.20977228,2602.7,2602.6,3.84231]
[1723884352382,1.61139679,2602.8,2602.6,3.84231]
[1723884352383,1.20977228,2602.8,2602.6,3.84231]
[1723884352559,2.54177228,2602.7,2602.5,3.8424]
[1723884352763,4.92287228,2602.7,2602.5,3.8424]
[1723884353195,4.92287228,2602.7,2602.5,3.84237]
[1723884353665,1.61139679,2602.6,2602.5,3.84237]
[1723884353897,1.2079304,2602.6,2602.3,3.84266]
[1723884354465,1.2079304,2602.5,2602.3,3.84266]
[1723884354693,2.5399304,2602.5,2602.3,3.84266]
[1723884358209,1.2079304,2602.4,2602.1,3.84295]
[1723884358415,1.332,2602.3,2602.1,3.84295]
[1723884358582,2.5399304,2602.3,2602.1,3.84295]
[1723884358986,2.5399304,2602.3,2601.9,3.8432]
[1723884359192,2.5399304,2602.3,2602.0,3.84315]
[1723884359402,1.2079304,2602.2,2601.9,3.8432]
[1723884359705,1.2079304,2602.2,2602.0,3.84314]
[1723884361395,1.2079304,2602.2,2601.9,3.8432]
[1723884361712,2.5399304,2602.3,2602.0,3.84317]
[1723884361886,1.2079304,2602.2,2602.0,3.84317]
[1723884362584,2.5399304,2602.3,2602.0,3.84317]
[1723884362980,1.2079304,2602.2,2602.0,3.84317]
[1723884363370,1.332,2602.1,2601.7,3.84351]
[1723884363577,2.5399304,2602.1,2601.7,7.68707]
[1723884365820,1.332,2602.1,2601.7,7.68707]
[1723884366311,1.332,2602.1,2601.8,3.84349]
[1723884366724,1.2079304,2602.2,2601.9,3.84332]
[1723884366887,1.2079304,2602.4,2602.1,3.84297]
[1723884367216,1.2079304,2602.4,2602.1,7.68594]
[1723884367371,1.2079304,2602.5,2602.2,3.84288]
[1723884367771,2.262,2602.3,2601.9,7.68647]
[1723884368016,3.4699304,2602.3,2601.9,7.68647]
[1723884368575,4.31234315,2602.3,2601.9,7.68647]
[1723884368782,4.31234315,2602.3,2602.0,3.84318]
[1723884369098,4.31234315,2602.3,2601.9,3.8432]
[1723884370090,1.332,2602.2,2601.9,3.8432]
[1723884371326,2.5399304,2602.2,2601.9,3.8432]
[1723884372526,3.64976539,2602.2,2601.9,3.8432]
[1723884372730,1.2079304,2602.1,2601.9,3.8432]
[1723884372902,1.2079304,2602.1,2601.7,7.68709]
[1723884373102,1.2079304,2602.1,2601.7,3.84349]
[1723884373300,1.2079304,2602.1,2601.8,3.84345]
[1723884373625,2.262,2602.0,2601.8,3.84345]
[1723884373793,1.332,2602.0,2601.7,3.84349]
[1723884374615,2.62981364,2602.1,2601.7,3.84349]
[1723884374793,2.62981364,2602.1,2601.5,3.84384]
[1723884374794,3.5258304,2602.0,2601.5,7.68769]
[1723884374999,1.332,2601.9,2601.5,7.68769]
[1723884376439,1.332,2601.9,2601.5,3.84384]
[1723884376996,1.332,2601.9,2601.5,7.68769]
[1723884377223,1.332,2601.9,2601.6,3.84378]
[1723884377534,3.12631104,2602.0,2601.6,3.84378]
[1723884377535,2.3179,2602.0,2601.6,3.84378]
[1723884377709,2.3179,2602.0,2601.7,3.84363]
[1723884378630,1.332,2602.1,2601.7,3.84363]
[1723884378789,2.46674899,2602.1,2601.7,3.84363]
[1723884382429,2.46674899,2602.1,2601.5,6.19359]
[1723884382430,6.30978899,2602.1,2601.5,6.19359]
[1723884382632,7.51771939,2602.1,2601.6,3.84366]
[1723884383398,0.75177194,2602.0,2601.6,3.84366]
[1723884385314,2.08377194,2602.0,2601.6,3.84366]
[1723884385500,1.332,2602.0,2601.7,3.84363]
[1723884392566,1.332,2602.0,2601.5,10.03738]
[1723884392932,3.6499,2602.0,2601.5,10.03738]
[1723884394793,4.8578304,2602.0,2601.5,10.03738]
[1723884397778,4.8578304,2602.0,2601.6,3.84377]
[1723884400212,4.83276093,2602.0,2601.6,3.84377]
[1723884402016,1.2079304,2601.9,2601.6,3.84377]
[1723884403306,3.62483053,2602.0,2601.6,3.84377]
[1723884403307,4.83276093,2602.0,2601.6,3.84377]
[1723884403618,1.2079304,2601.9,2601.6,3.84377]
[1723884408780,1.2079304,2601.9,2601.7,3.84359]
[1723884409271,28.14811275,2602.3,2601.7,3.84359]
[1723884409272,1.2079304,2602.3,2602.1,2.3467]
[1723884409428,4.84572323,2602.8,2602.5,3.84245]
[1723884409429,1.2079304,2602.6,2602.5,3.84245]
[1723884409629,1.61139679,2602.8,2602.5,3.84237]
[1723884409630,1.2079304,2602.7,2602.5,3.84237]
[1723884410131,1.2079304,2602.7,2602.4,10.03178]
[1723884410369,1.2079304,2602.7,2602.5,3.84238]
[1723884410554,1.2079304,2602.8,2602.5,3.84238]
[1723884412557,1.2079304,2602.9,2602.5,3.84238]
[1723884412768,1.332,2602.8,2602.5,3.84238]
[1723884413227,1.2079304,2602.9,2602.6,3.84226]
[1723884413430,1.2079304,2602.9,2602.4,2.3467]
[1723884413431,19.62,2603.1,2603.0,3.84172]
[1723884414057,19.62,2603.1,2602.8,10.03061]
[1723884414229,19.62,2603.1,2602.8,6.1886]
[1723884414773,1.2079304,2603.4,2602.8,2.3467]
[1723884414926,1.2079304,2603.4,2603.1,3.84156]
[1723884415135,4.9691304,2603.5,2603.1,3.84156]
[1723884415650,4.9691304,2603.5,2603.2,3.84142]
[1723884415845,6.75726012,2603.5,2603.2,3.84142]
[1723884416063,4.32806012,2603.5,2603.2,3.84142]
[1723884416282,3.12012972,2603.5,2603.2,3.84142]
[1723884416999,3.12012972,2603.5,2603.0,7.68321]
[1723884417700,3.12012972,2603.5,2603.1,3.84154]
[1723884417867,1.332,2603.5,2603.1,3.84154]
[1723884420306,7.46,2603.6,2603.2,3.84141]
[1723884420587,25.07186679,2603.9,2603.2,3.84141]
[1723884420588,1.332,2604.0,2603.7,3.84067]
[1723884421193,1.332,2604.0,2603.5,3.84087]
[1723884421402,1.332,2603.8,2603.5,3.84087]
[1723884422955,1.332,2603.8,2603.6,3.84078]
[1723884423601,1.332,2603.8,2603.5,7.68176]
[1723884424398,1.332,2603.8,2603.6,3.84083]
[1723884425903,1.332,2603.8,2603.7,3.84068]
[1723884427789,1.332,2604.0,2603.8,3.84051]
[1723884428176,1.332,2604.0,2603.8,7.68096]
[1723884428378,19.62,2604.2,2603.8,3.84045]
[1723884428584,19.62,2604.2,2603.8,7.6809]
[1723884428794,19.62,2604.2,2603.8,3.84045]
[1723884429173,19.62,2604.2,2603.8,7.68091]
[1723884429403,19.62,2604.2,2603.9,3.84037]
[1723884429603,20.952,2604.2,2604.0,3.84023]
[1723884429815,16.0796,2604.5,2604.1,3.84009]
[1723884429816,2.4558,2604.5,2604.1,3.84009]
[1723884430019,23.45914,2604.8,2604.0,2.4359]
[1723884430020,2.4558,2604.7,2604.3,3.83972]
[1723884430605,2.4558,2604.7,2604.3,3.83971]
[1723884430969,1.332,2604.6,2604.3,3.83971]
[1723884431170,1.332,2604.6,2604.4,3.83963]
[1723884433010,1.332,2604.6,2604.3,3.83971]
[1723884433716,1.332,2604.6,2604.3,7.67942]
[1723884434123,1.332,2604.6,2604.3,7.67941]
[1723884434277,1.332,2604.6,2604.4,3.83962]
[1723884437718,1.332,2604.8,2604.5,3.8395]
[1723884438537,3.83871,2605.1,2604.3,6.2115]
[1723884438538,1.332,2605.1,2604.8,3.83896]
[1723884439035,1.332,2604.9,2604.8,3.83896]
[1723884439708,1.356836,2605.2,2604.8,3.83896]
[1723884440039,2.332,2605.2,2605.0,3.83875]
[1723884440233,2.332,2605.2,2605.0,7.6775]
[1723884440457,2.332,2605.2,2605.0,3.83875]
[1723884440596,2.332,2605.2,2605.0,3.83868]
[1723884441507,1.0,2605.2,2605.0,3.83868]
[1723884441716,1.0,2605.2,2605.1,3.83862]
[1723884446619,1.0,2605.2,2604.9,10.1642]
[1723884446947,1.0,2605.2,2605.0,3.83876]
[1723884450437,6.6516,2605.2,2604.7,3.83912]
[1723884450635,1.332,2604.9,2604.7,3.83912]
[1723884451167,4.83848,2605.2,2604.7,3.83912]
[1723884455155,1.0,2605.2,2604.7,7.67822]
[1723884455321,1.0,2605.2,2604.8,3.83904]
[1723884455664,1.332,2605.1,2604.7,3.8391]
[1723884457537,1.332,2605.1,2604.7,7.67823]
[1723884457737,1.332,2605.1,2604.7,3.8391]
[1723884458871,1.332,2605.1,2604.7,7.67822]
[1723884461681,1.332,2605.1,2604.8,3.83905]
[1723884463196,1.332,2605.1,2604.8,7.67803]
[1723884463570,1.332,2605.1,2604.8,7.67796]
[1723884463755,1.332,2605.1,2604.8,3.83898]
[1723884467356,1.332,2605.1,2604.8,7.67794]
[1723884467795,1.332,2605.1,2604.8,3.83896]
[1723884471221,1.332,2604.9,2604.4,3.83956]
[1723884472683,1.332,2604.9,2604.6,3.83934]
[1723884472883,1.332,2604.9,2604.6,7.67862]
[1723884473499,1.332,2604.9,2604.6,3.83928]
[1723884473904,1.332,2604.9,2604.6,7.67856]
[1723884475715,2.5399304,2604.9,2604.6,7.67856]
[1723884475900,2.5399304,2604.9,2604.6,3.83928]
[1723884476133,2.5399304,2604.9,2604.6,7.67855]
[1723884476509,1.2079304,2604.9,2604.7,3.83907]
[1723884477158,1.2079304,2604.9,2604.7,3.83921]
[1723884477316,3.4683304,2605.0,2604.7,3.83921]
[1723884478031,1.2079304,2604.9,2604.7,3.83921]
[1723884479955,1.2079304,2604.9,2604.8,3.83906]
[1723884480611,1.2079304,2604.9,2604.7,3.83917]
[1723884480612,1.61139679,2605.1,2604.9,3.83891]
[1723884480847,1.20805868,2605.0,2604.9,3.83891]
[1723884481027,1.61139679,2605.1,2604.9,3.83891]
[1723884481355,1.20803946,2605.0,2604.9,3.83891]
[1723884481656,1.61139679,2605.1,2604.9,3.83891]
[1723884481950,2.94339679,2605.1,2604.9,3.83891]
[1723884482525,1.61139679,2605.0,2604.9,3.83891]
[1723884485619,3.3457095,2605.1,2604.9,3.83891]
[1723884485845,1.61170875,2605.0,2604.9,3.83891]
[1723884489628,1.61170875,2605.0,2604.7,3.83912]
[1723884489830,1.20894646,2604.8,2604.7,3.83912]
[1723884492890,1.20894646,2604.9,2604.8,3.83906]
[1723884493365,1.61170875,2605.0,2604.8,3.83906]
[1723884494029,1.61170875,2604.9,2604.8,3.83906]
[1723884494769,1.20944331,2604.9,2604.8,3.83906]
[1723884496234,1.61170875,2605.0,2604.8,3.83906]
[1723884496564,1.20947317,2604.9,2604.8,3.83906]
[1723884497774,1.20947317,2605.0,2604.9,7.67782]
[1723884500489,1.20947317,2605.1,2605.0,3.83877]
[1723884500850,2.61170875,2605.2,2605.0,3.83877]
[1723884501180,1.61170875,2605.2,2605.0,3.83877]
[1723884501554,1.20892079,2605.1,2605.0,3.83877]
[1723884501754,1.61170875,2605.2,2605.0,3.83877]
[1723884502427,3.01474078,2605.3,2605.1,3.83862]
[1723884502894,1.61176013,2605.2,2605.1,3.83862]
[1723884503262,2.01474078,2605.2,2605.1,3.83862]
[1723884503557,3.01474078,2605.3,2605.1,3.83862]
[1723884503759,2.01474078,2605.2,2605.1,3.83862]
[1723884505067,2.01452153,2605.2,2605.1,3.83862]
[1723884506675,3.01452153,2605.3,2605.1,3.83862]
[1723884506872,2.01452153,2605.2,2605.1,3.83862]
[1723884507829,2.01452153,2605.2,2604.9,7.67768]
[1723884507982,1.2087601,2605.0,2604.9,3.83877]
[1723884513425,1.61168013,2605.0,2604.9,3.83877]
[1723884514120,1.20876521,2605.0,2604.9,3.83877]
[1723884515076,1.61168013,2605.1,2605.0,3.83877]
[1723884520104,2.01512739,2605.2,2605.0,3.83877]
[1723884520297,1.61220351,2605.1,2605.0,3.83877]
[1723884520633,1.20917058,2605.1,2605.0,3.83877]
[1723884520993,1.61220351,2605.2,2605.0,3.83877]
[1723884521700,1.61220351,2605.1,2605.0,3.83877]
[1723884521905,2.01512739,2605.2,2605.0,3.83877]
[1723884522340,1.61225829,2605.1,2605.0,3.83877]
[1723884523991,1.61225829,2605.2,2605.0,3.83877]
[1723884524437,1.61225829,2605.2,2605.0,7.67754]
[1723884524730,1.61225829,2605.2,2605.0,7.67746]
[1723884525918,1.61225829,2605.2,2605.0,3.83869]
[1723884529293,1.61225829,2605.1,2605.0,3.83869]
[1723884532151,2.01574675,2605.1,2605.0,3.83869]
[1723884532567,2.01574675,2605.2,2605.0,3.83869]
[1723884532769,2.01623665,2605.1,2605.0,3.83869]
[1723884533361,2.01623665,2605.2,2605.0,3.83869]
[1723884533557,2.01623665,2605.1,2604.9,3.8389]
[1723884534281,1.61300938,2605.0,2604.9,3.8389]
[1723884537174,1.61300938,2605.1,2604.9,3.8389]
[1723884540429,1.61300938,2605.0,2604.8,3.83897]
[1723884540629,1.61300938,2604.9,2604.8,3.83897]
[1723884541244,1.61300938,2605.0,2604.8,3.83897]
[1723884541741,1.210569,2604.9,2604.8,3.83897]
[1723884544857,1.210569,2605.0,2604.8,3.83897]
[1723884546549,1.210569,2605.0,2604.8,7.67795]
[1723884546957,1.210569,2605.0,2604.8,3.83897]
[1723884547142,1.210569,2604.9,2604.8,3.83897]
[1723884547915,1.210569,2605.0,2604.9,3.83891]
[1723884553254,1.61300938,2605.1,2604.9,3.83891]
[1723884554852,1.21057437,2605.0,2604.9,3.83891]
[1723884555354,1.61300938,2605.1,2604.9,3.83891]
[1723884555953,1.21057227,2605.0,2604.9,3.83891]
[1723884565385,1.61300938,2605.1,2605.0,3.83877]
[1723884565386,1.21057227,2605.1,2605.0,3.83877]
[1723884565545,1.61300938,2605.2,2605.0,3.83877]
[1723884565746,1.21050758,2605.1,2605.0,3.83877]
[1723884566141,1.61300938,2605.2,2605.0,3.83877]
[1723884566422,1.61300938,2605.2,2605.1,7.67724]
[1723884566636,2.82463489,2605.8,2605.1,7.67724]
[1723884566637,2.82346546,2605.4,2605.1,4.35511299]
[1723884566916,1.21045608,2605.5,2605.4,3.83818]
[1723884567210,1.21028729,2605.5,2605.4,3.83818]
[1723884567368,2.01759635,2605.7,2605.4,3.83818]
[1723884567369,1.61300938,2605.7,2605.4,3.83818]
[1723884567569,1.61300938,2605.6,2605.4,3.83818]
[1723884567977,1.61300938,2605.7,2605.4,3.83818]
[1723884570481,1.61300938,2605.7,2605.5,3.83799]
[1723884570714,1.61300938,2605.8,2605.5,3.83799]
[1723884572200,1.61300938,2605.7,2605.5,3.83799]
[1723884572606,1.61300938,2605.8,2605.5,3.83799]
[1723884574040,1.61300938,2605.8,2605.5,7.67594]
[1723884574243,3.34603173,2605.9,2605.5,7.67594]
[1723884574244,1.61300938,2605.9,2605.5,3.83796]
[1723884574538,4.46343173,2606.0,2605.8,3.83759]
[1723884574539,1.61300938,2606.0,2605.8,3.83759]
[1723884574709,1.61300938,2606.1,2605.8,3.83759]
[1723884575032,1.61300938,2606.0,2605.8,3.83759]
[1723884575249,1.61300938,2606.1,2605.8,3.83759]
[1723884576102,1.61300938,2606.1,2605.8,3.83751]
[1723884577831,5.39440938,2606.2,2605.8,3.83749]
[1723884578032,1.61300938,2606.1,2605.8,3.83749]
[1723884578236,3.7814,2606.2,2605.8,3.83749]
[1723884578237,5.39440938,2606.2,2605.8,3.83749]
[1723884578532,6.3703846,2606.2,2605.8,3.83749]
[1723884579489,1.332,2606.0,2605.6,3.83776]
[1723884579697,2.94500938,2606.0,2605.6,3.83776]
[1723884580100,2.94500938,2606.0,2605.6,7.67556]
[1723884580433,2.94500938,2606.0,2605.4,2.3915]
[1723884580434,1.332,2605.8,2605.4,3.83809]
[1723884580938,1.332,2605.8,2605.4,7.67618]
[1723884581091,1.332,2605.8,2605.4,3.83809]
[1723884581505,1.332,2605.8,2605.4,7.67619]
[1723884582355,1.332,2605.8,2605.5,6.22951]
[1723884582553,1.61300938,2606.1,2605.6,2.3915]
[1723884582755,1.61300938,2606.3,2605.9,6.22891]
[1723884582928,1.61300938,2606.3,2605.9,2.3915]
[1723884583120,2.50509659,2606.2,2605.9,2.3915]
[1723884583354,2.50509659,2606.2,2605.8,3.83755]
[1723884583355,6.16909659,2606.2,2605.8,3.83755]
[1723884583523,0.81807088,2606.1,2605.7,3.83774]
[1723884583711,0.81807088,2606.1,2605.5,3.83795]
[1723884583712,2.332,2605.9,2605.5,3.83795]
[1723884583916,5.45037938,2606.0,2605.5,7.67588]
[1723884584116,3.94500938,2606.1,2605.5,10.06738]
[1723884584342,1.332,2605.9,2605.5,10.06738]
[1723884584543,1.332,2605.9,2605.5,6.22943]
[1723884584944,1.332,2605.9,2605.5,3.83793]
[1723884588336,2.332,2605.8,2605.5,3.83793]
[1723884589330,1.332,2605.9,2605.5,3.83793]
[1723884590436,2.94500938,2605.9,2605.5,3.83793]
[1723884591437,4.19255088,2605.9,2605.5,3.83793]
[1723884591964,2.5795415,2605.9,2605.5,2.87847]
[1723884592165,1.332,2605.9,2605.5,2.87847]
[1723884592551,1.332,2605.9,2605.5,5.75694]
[1723884593568,1.332,2605.9,2605.6,2.87839]
[1723884595324,1.332,2605.9,2605.5,2.87846]
[1723884595557,2.94500938,2605.9,2605.5,5.75692]
[1723884595732,2.94500938,2605.9,2605.5,2.87846]
[1723884596464,6.01363527,2605.9,2605.5,2.87846]
[1723884596645,2.4692,2605.8,2605.5,2.87846]
[1723884599446,2.4692,2605.8,2605.5,5.75692]
[1723884599631,2.4692,2605.8,2605.5,2.87846]
[1723884600978,4.08220938,2605.8,2605.5,2.87846]
[1723884601178,2.4692,2605.8,2605.5,2.87846]
[1723884601332,2.94500938,2605.9,2605.6,2.87836]
[1723884601980,1.332,2605.9,2605.6,2.87836]
[1723884602335,1.61300938,2606.0,2605.8,2.87819]
[1723884603486,1.61300938,2606.0,2605.8,2.87813]
[1723884603631,21.23300938,2606.1,2605.8,2.87813]
[1723884604267,21.23300938,2606.1,2605.8,5.75626]
[1723884604433,21.23300938,2606.1,2605.8,2.87813]
[1723884604857,21.23300938,2606.1,2605.8,5.75626]
[1723884605197,21.23300938,2606.1,2605.8,2.87813]
[1723884605412,1.61300938,2606.0,2605.8,5.75626]
[1723884605772,1.61300938,2606.0,2605.9,2.87808]
[1723884605975,21.23300938,2606.1,2606.0,2.87797]
[1723884607580,21.23300938,2606.1,2605.8,2.87809]
[1723884607803,21.23083173,2606.1,2605.8,2.87809]
[1723884608307,1.61083173,2606.0,2605.8,2.87809]
[1723884609134,1.61083173,2606.0,2605.9,2.87807]
[1723884609721,22.96553966,2606.1,2605.9,2.87807]
[1723884610439,2.01353966,2606.0,2605.9,2.87807]
[1723884611122,1.61157835,2606.0,2605.9,2.87807]
[1723884611732,1.61157835,2606.0,2605.8,2.87817]
[1723884611937,3.62511801,2606.0,2605.8,2.87817]
[1723884612106,1.61157835,2605.9,2605.8,2.87817]
[1723884612301,3.34697033,2605.9,2605.7,2.87821]
[1723884612536,3.34697033,2605.9,2605.5,5.28342]
[1723884612692,3.34697033,2605.9,2605.6,2.87835]
[1723884612693,1.61252753,2605.7,2605.6,2.87835]
[1723884613530,1.61252753,2605.7,2605.5,2.87842]
[1723884613531,2.01497033,2605.7,2605.5,2.87842]
[1723884613721,1.61262195,2605.6,2605.5,2.87842]
[1723884614941,1.61262195,2605.6,2605.3,5.28373]
[1723884614942,1.61262195,2605.8,2605.6,5.14121]
[1723884615144,1.61262195,2605.8,2605.7,2.8783]
[1723884617651,1.61262195,2605.8,2605.4,2.87861]
[1723884617871,1.61262195,2605.8,2605.2,2.87878]
[1723884617872,1.61262195,2605.5,2605.2,2.87878]
[1723884618069,1.61262195,2605.5,2605.2,5.75758]
[1723884618245,1.61262195,2605.5,2605.2,2.87878]
[1723884618439,1.61262195,2605.5,2605.3,2.87873]
[1723884619543,1.61262195,2605.5,2605.4,2.87863]
[1723884619782,1.61262195,2605.7,2605.6,2.87841]
[1723884619983,1.61262195,2605.7,2605.5,2.87852]
[1723884620280,2.01497033,2605.8,2605.5,2.87852]